[Event "SixDays Budapest GM-B January 2024"]
[Site "Budapest"]
[Date "2024.02.01"]
[Round "9.5"]
[White "Lee, Alice"]
[Black "Varga, Zoltan"]
[Result "1/2-1/2"]
[ECO "A04"]
[WhiteElo "2379"]
[BlackElo "2366"]
[Annotator "ChessBase"]
[PlyCount "52"]
[EventDate "2024.01.26"]
[EventType "tourn"]
[EventCountry "HUN"]
[SourceTitle "playchess.com"]
[Source "ChessBase"]
[SourceQuality "1"]
[TimeControl "5400+30"]

1. Nf3 {[%emt 0:00:02]} c5 {[%emt 0:14:39]} 2. c4 {[%emt 0:00:08]} g6 {[%emt 0:00:34]} 3. d4 {[%emt 0:00:27]} cxd4 {[%emt 0:00:06]} 4. Nxd4 {[%emt 0:00:08]} Bg7 {[%emt 0:00:23]} 5. Nc3 {[%emt 0:00:40]} Nc6 {[%emt 0:00:07]} 6. e3 {[%emt 0:01:27]} b6 {[%emt 0:01:26]} 7. Be2 {[%emt 0:02:31]} Bb7 {[%emt 0:00:06]} 8. O-O {[%emt 0:00:12]} Nf6 {[%emt 0:00:53]} 9. b3 {[%emt 0:01:05]} O-O {[%emt 0:00:22]} 10. Bb2 {[%emt 0:00:08]} Nxd4 {[%emt 0:00:19]} 11. exd4 {[%emt 0:00:20]} d5 {[%emt 0:00:06]} 12. Re1 {[%emt 0:03:05]} Rc8 {[%emt 0:02:34]} 13. Bf3 {[%emt 0:04:16]} Re8 {[%emt 0:02:27]} 14. Rc1 {[%emt 0:06:16]} Qd7 {[%emt 0:02:43]} 15. cxd5 {[%emt 0:00:57]} Bh6 {[%emt 0:06:48]} 16. Rc2 {[%emt 0:05:40]} Nxd5 {[%emt 0:01:36]} 17. Nxd5 {[%emt 0:01:53]} Rxc2 {[%emt 0:00:24]} 18. Qxc2 {[%emt 0:04:50]} Bxd5 {[%emt 0:02:35]} 19. Bxd5 {[%emt 0:00:34]} Qxd5 {[%emt 0:00:02]} 20. Qc7 {[%emt 0:05:23]} Qa5 {[%emt 0:00:31]} 21. Bc3 {[%emt 0:03:03]} Qxa2 {[%emt 0:00:12]} 22. Qd7 {[%emt 0:09:02]} Rf8 {[%emt 0:00:21]} 23. Bb4 {[%emt 0:01:40]} Bg5 {[%emt 0:04:41]} 24. Bxe7 {[%emt 0:16:13]} Qd2 {[%emt 0:02:41]} 25. Rf1 {[%emt 0:00:09]} Bxe7 {[%emt 0:02:08]} 26. Qxe7 {[%emt 0:00:03]} Qxd4 {[%emt 0:00:07]} 1/2-1/2